[Event "CCT Airthings Masters Play-In 2023"]
[Site "Online"]
[Date "2023.02.03"]
[Round "3"]
[White "Fier, Alexandr"]
[Black "viviania"]
[Result "1-0"]
[ECO "C55"]
[WhiteElo "2606"]
[BlackElo "2570"]
[Annotator "TA"]
[PlyCount "91"]
[EventDate "2023.02.03"]
[EventType "swiss"]
[EventCountry "NET"]
[SourceTitle "playchess.com"]
[Source "ChessBase"]
[SourceQuality "1"]
[TimeControl "600+2"]

{[%evp 14,91,20,15,39,40,39,7,27,0,0,-6,27,27,25,0,-5,-11,-18,-5,0,0,29,22,30,6,18,9,20,18,22,20,22,26,26,24,20,0,51,0,0,0,12,12,22,23,25,0,17,0,0,0,22,0,33,33,41,41,41,41,41,53,54,54,54,54,53,54,193,193,187,169,187,194,189,196,407,378,377,385]} 1. e4 {[%emt 0:00:03]} e5 {[%emt 0:00:04]} 2. Nf3 {[%emt 0:00:01]} Nc6 {[%emt 0:00:01]} 3. Bc4 {[%emt 0:00:00]} Nf6 {[%emt 0:00:02]} 4. d3 {[%emt 0:00:01]} Be7 {[%emt 0:00:04]} 5. O-O {[%emt 0:00:04]} O-O {[%emt 0:00:01]} 6. a4 {[%emt 0:00:01]} d6 {[%emt 0:00:03]} 7. Nc3 {[%emt 0:00:09]} h6 {[%emt 0:00:02]} 8. h3 {[%emt 0:00:03]} Re8 {[%emt 0:00:01] C55: Two Knights: 4 d3, 4 d4 exd4 5 e5 and Max Lange Attack.} 9. a5 {[%emt 0:00:04]} a6 {[%emt 0:00:02] [#]} 10. Nd5 $146 {[%emt 0:00:19]} ({Predecessor:} 10. Bd2 Bf8 11. Nd5 Nxd5 12. Bxd5 Ne7 13. Bb3 Ng6 14. Re1 Qf6 15. Nh2 Be6 16. Ng4 {1-0 Tari,A (2646)-Kociscak,J (2484) CZE-chT 2122 2021 (14.2)}) 10... Bf8 {[%emt 0:00:07] The position is equal.} (10... Nxd5 {looks sharper.} 11. Bxd5 Nxa5 12. Rxa5 c6) 11. c3 {[%emt 0:00:06]} Nxd5 {[%emt 0:00:02]} 12. Bxd5 {[%emt 0:00:03]} Be6 {[%emt 0:00:01]} (12... Nxa5 $5 13. Rxa5 c6 14. Bxf7+ {[%mdl 64] Decoy} Kxf7 15. Qb3+ Kg6 $11) 13. Bxe6 {[%emt 0:00:02]} Rxe6 {[%emt 0:00:02]} 14. b4 {[%emt 0:00:00]} d5 {[%emt 0:00:10]} 15. Rb1 {[%emt 0:02:05]} dxe4 {[%emt 0:00:13]} 16. dxe4 {[%emt 0:00:02]} Qxd1 {[%emt 0:00:01]} 17. Rxd1 {[%emt 0:00:02]} Rd6 {[%emt 0:00:01]} 18. Rxd6 {[%emt 0:00:05]} Bxd6 {[%emt 0:00:02]} 19. Nd2 {[%emt 0:00:02]} f6 {[%emt 0:00:18]} 20. Nc4 {[%emt 0:00:01]} Kf7 {[%emt 0:00:01]} 21. Be3 {[%emt 0:00:19]} Ke6 {[%emt 0:00:03]} 22. f3 {[%emt 0:00:01]} Be7 {[%emt 0:00:09]} 23. Kf2 {[%emt 0:00:03]} Nd8 {[%emt 0:00:01]} 24. Ke2 {[%emt 0:00:11]} Nf7 {[%emt 0:00:01]} 25. g4 {[%emt 0:00:10]} Nd6 {[%emt 0:00:08]} ({Black should play} 25... h5 $11) 26. Nd2 {[%emt 0:00:01]} (26. Nxd6 $14 Kxd6 27. h4) 26... Rh8 $11 {[%emt 0:00:16]} 27. Nb3 {[%emt 0:00:30]} Nb5 {[%emt 0:00:02]} 28. Rc1 {[%emt 0:00:21]} h5 {[%emt 0:00:11]} 29. c4 {[%emt 0:00:28]} Nd6 {[%emt 0:00:01]} 30. Nc5+ {[%emt 0:00:01]} Kf7 {[%emt 0:00:03]} 31. Kf1 {[%emt 0:00:06]} hxg4 {[%emt 0:00:05]} 32. hxg4 {[%emt 0:00:01]} Ra8 {[%emt 0:00:35]} 33. Ke2 {[%emt 0:00:12]} Bf8 {[%emt 0:00:10]} 34. Kd3 {[%emt 0:00:12]} Be7 {[%emt 0:00:02]} 35. Rh1 {[%emt 0:00:07]} Rd8 {[%emt 0:00:05]} 36. Kc3 {[%emt 0:00:04]} Ra8 {[%emt 0:00:01]} 37. Kb3 {[%emt 0:00:01]} b6 {[%emt 0:00:19]} 38. axb6 {[%emt 0:00:14]} cxb6 {[%emt 0:00:01]} 39. Nd7 {[%emt 0:00:01]} b5 {[%emt 0:00:01]} 40. c5 {[%emt 0:00:06][%cal Bc4c5,Bc5b6][%mdl 32]} Nc4 {[%emt 0:00:01] Black cannot hold the game after this.} (40... Rd8 $1 $14 41. Nb6 (41. cxd6 Rxd7 42. Bc5 Bxd6 $11) 41... Nxe4) 41. Nb6 $18 {[%emt 0:00:02]} Nxb6 {[%emt 0:00:02]} 42. cxb6 {[%emt 0:00:00] [#] Strongly threatening Rc1.} Ke6 {[%emt 0:00:01]} 43. Rc1 {[%emt 0:00:16] Rc6+ is the strong threat.} Bd6 {[%emt 0:00:03]} 44. Bc5 {[%emt 0:00:21]} Rb8 $2 {[%emt 0:00:05]} (44... Rh8 45. Rd1 Bb8) 45. Rd1 {[%emt 0:00:17]} Be7 {[%emt 0:00:03]} 46. Ra1 {[%emt 0:00:02] Weighted Error Value: White=0.07 (flawless) /Black=0.21 (precise)} 1-0

[Event "CCT Airthings Masters Play-In 2023"]
[Site "Online"]
[Date "2023.02.03"]
[Round "3"]
[White "LastGladiator1"]
[Black "VladimirKramnik"]
[Result "0-1"]
[ECO "A13"]
[WhiteElo "2606"]
[BlackElo "2750"]
[Annotator "TA"]
[PlyCount "86"]
[EventDate "2023.02.03"]
[EventType "swiss"]
[EventCountry "NET"]
[SourceTitle "playchess.com"]
[Source "ChessBase"]
[SourceQuality "1"]
[TimeControl "600+2"]

{[%evp 9,86,-23,-6,-3,-13,-52,-55,-64,-68,-56,-58,-56,-45,-49,0,0,1,-80,-75,-76,-81,-135,-96,-108,-95,-148,-146,-133,-96,-110,-102,-114,-86,-369,-272,-286,-215,-210,-79,-95,-109,-131,-146,-153,-150,-151,-152,-109,-122,-253,0,0,25,-216,-241,-236,-228,-415,-408,-537,-530,-562,-554,-570,-533,-560,-560,-639,-589,-610,-573,-749,-719,-1052,-2956,-2001,-2025,-1949,-1892]} 1. c4 {[%emt 0:00:03]} e6 {[%emt 0:00:06]} 2. Nc3 {[%emt 0:00:07]} Bb4 {[%emt 0:00:02]} 3. e4 {[%emt 0:00:02]} c5 {[%emt 0:00:06]} 4. a3 {[%emt 0:00:11]} Ba5 {[%emt 0:00:04] [#]} 5. f4 $146 {[%emt 0:00:38]} ({Predecessor:} 5. b4 cxb4 6. Nb5 Nc6 7. Bb2 Nf6 8. e5 Ng8 9. Nf3 f5 10. Be2 Nh6 11. Nd6+ Kf8 12. O-O Nf7 13. d4 Nxd6 14. exd6 bxa3 15. Rxa3 Bb4 16. Rd3 Bxd6 17. d5 {1-0 Belz,B-Faust,D Rangliste 1800-2100 19244 2015}) 5... Nc6 {[%emt 0:00:03][%cal Od7d5]} 6. Nf3 {[%emt 0:00:05] A13: English Opening: 1...e6.} Nge7 {[%emt 0:00:02]} 7. g3 {[%emt 0:01:18]} d5 {[%emt 0:00:08]} 8. Bg2 {[%emt 0:00:06] Black is slightly better.} dxc4 {[%emt 0:00:08]} 9. Qa4 {[%emt 0:00:06]} O-O {[%emt 0:00:56][%cal Oe6e5] White must now prevent ...e5!} 10. Qxc4 {[%emt 0:00:03]} b5 {[%emt 0:00:06][%mdl 64] Deflection} 11. Qxb5 {[%emt 0:00:13]} Nd4 {[%emt 0:00:08]} (11... Rb8 $1 $15 12. Qc4 (12. Qxc5 Bb6 $11) 12... Bc7) 12. Nxd4 $11 {[%emt 0:00:09]} (12. Qxc5 $2 Nc2+ 13. Kd1 Nxa1 $19) 12... cxd4 {[%emt 0:00:01][%cal Bc5d4,Bd4d3][%mdl 32]} 13. Ne2 {[%emt 0:00:47]} (13. Nd1 $11 {remains equal.}) 13... d3 $1 $17 {[%emt 0:00:07][%mdl 1024] ...a6 is the strong threat. Black has strong compensation.} 14. Nc3 {[%emt 0:00:04]} Bb6 {[%emt 0:00:06]} 15. b3 {[%emt 0:00:25]} ({Better is} 15. Bf1) 15... a5 {[%emt 0:00:27]} (15... Qd4 $6 16. Rf1 $14) 16. Bb2 {[%emt 0:00:10]} Ba6 {[%emt 0:00:05]} 17. Qa4 {[%emt 0:01:08]} (17. Qh5 $142) 17... Rc8 {[%emt 0:00:02]} 18. b4 {[%emt 0:00:09]} Bc4 {[%emt 0:00:38]} 19. bxa5 {[%emt 0:01:13]} Ba7 {[%emt 0:00:08]} (19... Bxa5 $6 20. Nd1 $11) 20. Rc1 {[%emt 0:00:11]} Ba6 {[%emt 0:00:23] Threatens to win with ...Rc4.} (20... Qd4 21. Nd1 Qc5 22. Bf3 $16) 21. Bf3 $2 {[%emt 0:00:40][%mdl 8192]} (21. Nd1 $17 {was the only defense.}) 21... Ng6 {[%emt 0:00:19][%cal Og6h4]} 22. Na2 {[%emt 0:00:41]} Rxc1+ {[%emt 0:00:21]} 23. Nxc1 {[%emt 0:00:01] [#]} (23. Bxc1 Nxf4 24. Bb2 (24. gxf4 $2 Qh4+ 25. Kd1 Qh3 $19) 24... Ne2 $17) 23... Nxf4 {[%emt 0:01:32]} 24. Qc6 {[%emt 0:00:25]} (24. gxf4 $2 Qh4+ 25. Kd1 Qh3 $19) 24... Qb8 $1 {[%emt 0:00:01]} 25. Qxa6 {[%emt 0:00:29]} Qxb2 {[%emt 0:00:07]} 26. Qc4 {[%emt 0:00:06] [#] White is weak on the dark squares} Be3 {[%emt 0:00:49][%mdl 576] Promotion. Dancing on a razor blade.} 27. Nb3 {[%emt 0:00:09][%cal Og3f4]} Qb1+ {[%emt 0:00:22]} 28. Nc1 {[%emt 0:00:18]} Ng6 $1 $40 {[%emt 0:00:52][%mdl 128] ...Ne5 would be deadly. Black wants a kill. Black has more active pieces. The white rooks are badly placed.} 29. Bd1 {[%emt 0:00:56] [#]} (29. dxe3 $2 {too greedy.} Ne5 30. Qc3 d2+ 31. Ke2 (31. Kxd2 $2 Nxf3+ 32. Ke2 Qxe4 $19) (31. Kf2 $2 dxc1=R 32. Rxc1 Nd3+ 33. Kg2 Nxc1 $19) 31... dxc1=B 32. Rxc1 Qb5+ 33. Kf2 Nd3+ 34. Kg2 Nxc1 35. Qxc1 Qxa5 $19) (29. Qc3 $17 {was necessary.} Ne7 30. Bd1 (30. dxe3 $2 Rc8 $19)) 29... Qb2 $2 {[%emt 0:01:31]} 30. Nb3 {[%emt 0:00:05]} (30. dxe3 d2+ 31. Kf1 dxc1=Q 32. Qxc1 Qxc1 33. Kf2 Rd8 34. Rf1 Rxd1 35. Rxd1 Qxd1 36. a6 Ne5 37. a7 Ng4+ 38. Kg2 h5 39. a8=Q+ Kh7 40. Qa6 Qd2+) 30... Ne5 {[%emt 0:00:05]} 31. Qc3 {[%emt 0:00:03]} ({Reject} 31. Qc1 Qxc1 32. Nxc1 Bc5 $17) (31. Qc7 $11 {and White is okay.}) 31... Qxc3 $19 {[%emt 0:00:09]} (31... Qxa3 $2 32. Qxe5 Ba7 33. Qc3 $18) 32. dxc3 {[%emt 0:00:00]} Rc8 {[%emt 0:00:05]} 33. Rf1 $2 {[%emt 0:00:03]} (33. a6 {keeps fighting.}) 33... Rxc3 {[%emt 0:00:03][%cal Oc3c1]} 34. Rf4 {[%emt 0:00:02]} g5 {[%emt 0:00:06] Black is clearly winning.} 35. Rf1 {[%emt 0:00:02]} Kg7 {[%emt 0:00:08]} 36. h4 {[%emt 0:00:01]} h6 {[%emt 0:00:02][%cal Bh7h6,Bh6g5,Bg5g4][%mdl 32]} 37. hxg5 {[%emt 0:00:00]} hxg5 {[%emt 0:00:01]} 38. Rh1 {[%emt 0:00:01]} g4 {[%emt 0:00:09][%cal Oc3c1] Strongly threatening ...Rc1!} 39. Kf1 {[%emt 0:00:02]} Nc4 {[%emt 0:00:13]} 40. Kg2 {[%emt 0:00:01]} Ba7 {[%emt 0:00:04]} 41. Kh2 {[%emt 0:00:04]} Ne3 {[%emt 0:00:01]} 42. Nd2 {[%emt 0:00:00]} Rxa3 {[%emt 0:00:02] ( -> ...Ra2)} 43. Bb3 {[%emt 0:00:02] Prevents Ra2} Rxa5 {[%emt 0:00:02] A cool game by VladimirKramnik.   Weighted Error Value: White=0.61/Black=0.25 (precise)} 0-1

[Event "CCT Airthings Masters Play-In 2023"]
[Site "Online"]
[Date "2023.02.03"]
[Round "3"]
[White "GMBenjaminBok"]
[Black "Aygehovit"]
[Result "0-1"]
[ECO "B06"]
[WhiteElo "2605"]
[BlackElo "2428"]
[Annotator "TA"]
[PlyCount "100"]
[EventDate "2023.02.03"]
[EventType "swiss"]
[EventCountry "NET"]
[SourceTitle "playchess.com"]
[Source "ChessBase"]
[SourceQuality "1"]
[TimeControl "600+2"]

{[%evp 13,100,81,64,62,85,77,116,69,72,95,95,66,111,104,158,153,150,89,87,46,42,42,41,25,54,45,45,20,22,0,0,-6,0,-16,-15,-32,0,-47,0,0,0,-128,-127,-129,-111,-105,-87,-244,-226,-233,-215,-261,-270,-490,-492,-508,-505,-490,-411,-402,-383,-558,-558,-543,-535,-527,-527,-835,-721,-858,-838,-872,-870,-869,-871,-790,-759,-2443,-2463,-1915,-1762,-3382,-2588,-3004,-2999,-4622,-4134,-29976,-29977]} 1. d4 {[%emt 0:00:03]} d6 {[%emt 0:00:04]} 2. Nf3 {[%emt 0:00:03]} g6 {[%emt 0:00:00]} 3. e4 {[%emt 0:00:03]} Bg7 {[%emt 0:00:01]} 4. Be3 {[%emt 0:00:02]} Nc6 {[%emt 0:00:09]} 5. Nc3 {[%emt 0:00:06]} Bg4 {[%emt 0:00:10]} 6. Bb5 {[%emt 0:00:02]} a6 {[%emt 0:00:04]} 7. Bxc6+ {[%emt 0:00:02]} bxc6 {[%emt 0:00:00]} 8. h3 {[%emt 0:00:01] B06: Modern Defence.} Bd7 {[%emt 0:00:22]} 9. Qd2 {[%emt 0:00:15]} Qb8 {[%emt 0:00:06] [#]} 10. O-O-O $146 {[%emt 0:00:38]} ({White should play} 10. O-O $16) ({Predecessor:} 10. O-O Nf6 11. b3 h6 12. Rad1 Qc8 13. Rfe1 g5 14. Nh2 Qb7 15. Nf1 Nh5 16. Ne2 {1-0 Hartl,H (2459)-Degterev,P (2242) LSS CP-2006-S-00001 2009}) 10... a5 {[%emt 0:00:25]} 11. e5 {[%emt 0:00:15]} a4 {[%emt 0:00:05] Black is weak on the dark squares} 12. Rhe1 {[%emt 0:00:04]} Qb4 {[%emt 0:00:26]} 13. a3 {[%emt 0:00:05]} Qc4 {[%emt 0:00:03]} (13... Qb7 $142) 14. Bf4 $16 {[%emt 0:03:49]} d5 {[%emt 0:00:41] [#]} 15. Qe3 {[%emt 0:00:51]} (15. e6 $142 $1 {[%cal Re6d7]} fxe6 16. g4 (16. Bxc7 c5 $16)) 15... e6 {[%emt 0:00:08]} 16. Qe2 {[%emt 0:01:00]} Qxe2 {[%emt 0:00:09]} 17. Rxe2 {[%emt 0:00:00]} Ne7 {[%emt 0:00:07]} 18. Ne1 {[%emt 0:00:06]} Nc8 {[%emt 0:00:34]} 19. Nd3 {[%emt 0:00:04]} Nb6 {[%emt 0:00:00]} 20. Bg5 {[%emt 0:00:02]} Bf8 {[%emt 0:00:17]} 21. Bf6 {[%emt 0:00:16]} Rg8 {[%emt 0:00:02]} 22. g4 {[%emt 0:00:32]} Bc8 {[%emt 0:00:02][%cal Bd7c8,Bc8a6,Ba6b5][%mdl 32]} 23. Ree1 {[%emt 0:00:06]} Ba6 {[%emt 0:00:15]} 24. Nc5 {[%emt 0:00:22]} Bb5 {[%emt 0:01:40]} 25. Re3 {[%emt 0:00:43]} (25. Bg5 $11) 25... Bxc5 {[%emt 0:00:27]} (25... h6 $15 {deserves consideration.}) 26. dxc5 $11 {[%emt 0:00:00]} Nd7 {[%emt 0:00:00]} 27. b4 {[%emt 0:00:54]} (27. Rd4 $11) 27... axb3 $17 {[%emt 0:00:10][%mdl 64] [#] Discovered Attack} 28. cxb3 {[%emt 0:00:00]} Rxa3 {[%emt 0:00:16]} 29. Kb2 {[%emt 0:00:03] Against Ra1} Ra6 {[%emt 0:00:05]} 30. b4 $2 {[%emt 0:00:06]} (30. Bg5 $17) 30... Nxf6 {[%emt 0:00:08]} 31. exf6 {[%emt 0:00:01]} Kd7 {[%emt 0:00:05]} 32. g5 {[%emt 0:00:16]} Rb8 {[%emt 0:00:13] ...Bc4 would be deadly.} 33. Ree1 $2 {[%emt 0:00:12]} (33. Nxb5 cxb5 34. Re4) 33... Bc4 $19 {[%emt 0:00:04]} 34. Ra1 {[%emt 0:00:01]} Rxb4+ {[%emt 0:00:02]} 35. Kc2 {[%emt 0:00:00]} d4 {[%emt 0:00:27]} 36. Rxa6 {[%emt 0:00:04]} Bxa6 {[%emt 0:00:00][%mdl 4096] Endgame KRB-KRN} 37. Ra1 {[%emt 0:00:02]} (37. Ne4 $142 e5 38. Nd2) 37... Rc4 {[%emt 0:00:12][%mdl 64] Pin, Double Attack} 38. Rxa6 {[%emt 0:00:03]} Rxc3+ {[%emt 0:00:01] KR-KR} 39. Kd2 {[%emt 0:00:00]} Rxc5 {[%emt 0:00:03]} 40. f4 {[%emt 0:00:02]} e5 {[%emt 0:00:12]} 41. fxe5 {[%emt 0:00:06]} Rxe5 {[%emt 0:00:00]} 42. h4 {[%emt 0:00:00]} Re4 {[%emt 0:00:09]} 43. Ra8 {[%emt 0:00:02]} Rxh4 {[%emt 0:00:01]} 44. Rf8 {[%emt 0:00:00]} Ke6 {[%emt 0:00:00] Threatens to win with ...c5.} 45. Re8+ {[%emt 0:00:02]} Kf5 {[%emt 0:00:01]} 46. Re7 {[%emt 0:00:00]} Kxg5 {[%emt 0:00:01] White must now prevent ...Rg4.} 47. Rxf7 {[%emt 0:00:01]} h5 {[%emt 0:00:01] Strongly threatening ...Rf4.} 48. Rxc7 {[%emt 0:00:06]} Kxf6 {[%emt 0:00:01]} 49. Rxc6+ {[%emt 0:00:00]} Kg5 {[%emt 0:00:01] aiming for ...Rf4.} 50. Rd6 {[%emt 0:00:01]} Rf4 {[%emt 0:00:03] Never resign too early!   Weighted Error Value: White=0.63/Black=0.13 (very precise)} 0-1

[Event "CCT Airthings Masters Play-In 2023"]
[Site "Online"]
[Date "2023.02.03"]
[Round "3"]
[White "Msb2"]
[Black "Andreikin, Dmitry"]
[Result "0-1"]
[ECO "D31"]
[WhiteElo "2601"]
[BlackElo "2729"]
[Annotator "TA"]
[PlyCount "128"]
[EventDate "2023.02.03"]
[EventType "swiss"]
[EventCountry "NET"]
[SourceTitle "playchess.com"]
[Source "ChessBase"]
[SourceQuality "1"]
[TimeControl "600+2"]

{[%evp 9,128,19,16,9,14,14,4,9,7,0,0,-6,0,0,0,0,0,-4,0,-22,0,-19,0,0,14,0,0,0,25,0,0,0,0,0,0,-33,-10,-39,-41,-44,-87,-75,-74,-212,-210,-455,-397,-434,-453,-444,-334,-334,-334,-334,-334,-334,-334,-334,-334,-524,-523,-515,-516,-591,-591,-591,-591,-585,-547,-562,-547,-490,-489,-591,-589,-707,-590,-747,-692,-731,-727,-743,-693,-680,-575,-685,-685,-696,-650,-628,-575,-575,-568,-512,-497,-933,-873,-1226,-1202,-2019,-1899,-12791,-12791,-2039,-12791,-12791,-5193,-6873,-2549,-29981,-29981,-29985,-29982,-29989,-29990,-29991,-29992,-29996,-29997,-29998,-29999]} 1. d4 {[%emt 0:00:03]} d5 {[%emt 0:00:05]} 2. c4 {[%emt 0:00:01]} e6 {[%emt 0:00:01]} 3. Nc3 {[%emt 0:00:01]} a6 {[%emt 0:00:02]} 4. cxd5 {[%emt 0:00:03]} exd5 {[%emt 0:00:02]} 5. a3 {[%emt 0:00:01]} c6 {[%emt 0:00:56]} 6. Bf4 {[%emt 0:00:07] D31: Queen's Gambit Declined: Semi-Slav without ...Nf6 (+ Marshall Gambit and Noteboom) and Exchange Variation lines without ...Nf6.} Bd6 {[%emt 0:00:02] [#]} 7. Bxd6 $146 {[%emt 0:00:02]} ({Predecessor:} 7. Bg3 Ne7 8. e3 Bf5 9. Bd3 O-O 10. Nge2 Re8 11. Qc2 Bxd3 12. Qxd3 Ng6 13. Rc1 {½-½ Sidler,R (1695)-Alic,M (2030) Lugano op 21st 2022 (2)}) 7... Qxd6 {[%emt 0:00:01]} 8. e3 {[%emt 0:00:00] The position is equal.} Ne7 {[%emt 0:00:04]} 9. Bd3 {[%emt 0:00:05]} Bf5 {[%emt 0:00:03]} 10. Nge2 {[%emt 0:00:06]} Nd7 {[%emt 0:00:04]} 11. O-O {[%emt 0:00:02]} O-O {[%emt 0:00:03]} 12. Ng3 {[%emt 0:01:00]} Bg6 {[%emt 0:00:04]} 13. Rc1 {[%emt 0:00:05]} Nb6 {[%emt 0:00:24]} 14. Qe2 {[%emt 0:01:27]} a5 {[%emt 0:00:39]} 15. Rfd1 {[%emt 0:00:15]} a4 {[%emt 0:00:08]} 16. e4 {[%emt 0:00:17]} dxe4 {[%emt 0:00:07]} 17. Ncxe4 {[%emt 0:00:02]} Qc7 {[%emt 0:00:14]} 18. Nc5 {[%emt 0:00:02]} Ned5 {[%emt 0:00:04]} 19. Qf3 {[%emt 0:00:13]} Bxd3 {[%emt 0:00:20]} 20. Qxd3 {[%emt 0:00:03]} Rfe8 {[%emt 0:00:03][%cal Bf8e8,Be8e7,Be7e2][%mdl 32]} 21. Qc2 {[%emt 0:00:05]} g6 {[%emt 0:00:16]} 22. Nge4 {[%emt 0:00:12]} Re7 {[%emt 0:00:01]} 23. Nc3 {[%emt 0:00:11]} Nxc3 {[%emt 0:00:50]} 24. bxc3 {[%emt 0:00:05]} Nc4 {[%emt 0:00:03]} 25. Nxa4 {[%emt 0:00:12] [#]} Rae8 $1 {[%emt 0:00:37] White must now prevent ...Re2. Black has more active pieces.} 26. g3 {[%emt 0:00:55] This costs White the game.} (26. Qd3 $17 b5 27. Rf1 (27. Nc5 $2 Nb2 $19)) 26... Re2 $19 {[%emt 0:00:16][%mdl 1024] Black has strong compensation.} (26... Nxa3 27. Qb3 Nb5 28. c4 $11) 27. Qb1 {[%emt 0:00:28] White is weak on the light squares} (27. Qd3 {only move.} b5 28. Nc5) 27... Qe7 {[%emt 0:00:30] ...Qf6 would be deadly.} (27... Nxa3 28. Qd3 $11) 28. Rc2 {[%emt 0:01:55]} Qf6 {[%emt 0:00:20]} (28... Nxa3 29. Rxe2 Qxe2 30. Qd3 $11) (28... Qxa3 29. Nc5 $11) 29. Rf1 {[%emt 0:00:10]} Qf3 {[%emt 0:00:15][%cal Oc4e3]} ({Inferior is} 29... Nxa3 30. Rxe2 (30. Qxb7 Nxc2 31. Nc5 Qf3 32. Qd7 Re1 33. Qh3 R8e2) 30... Rxe2 31. Qxb7 $11) 30. Rxe2 {[%emt 0:00:37]} Rxe2 {[%emt 0:00:00]} ({And not} 30... Qxe2 31. Qd1 $11) 31. Qxb7 {[%emt 0:00:19] [#]} Ne3 $1 {[%emt 0:00:48][%csl Ge3][%cal Rf3g2][%mdl 512]} 32. Qb8+ {[%emt 0:00:05]} (32. fxe3 $2 Qg2#) 32... Kg7 {[%emt 0:00:01][%csl Ge3][%cal Rf3g2]} 33. Qe5+ {[%emt 0:00:00]} Kh6 {[%emt 0:00:03][%csl Ge3][%cal Rf3g2]} 34. Qxe3+ {[%emt 0:00:21]} (34. Qf4+ $142 Qxf4 35. gxf4 Nxf1 36. Kxf1) 34... Rxe3 {[%emt 0:00:01]} 35. fxe3 {[%emt 0:00:00]} Qxe3+ {[%emt 0:00:00][%mdl 4096] Endgame KQ-KRN} 36. Kg2 {[%emt 0:00:01]} f5 {[%emt 0:00:07] And now ...Qe4+ would win.} 37. Rf2 {[%emt 0:00:23]} Qe4+ {[%emt 0:00:25]} 38. Kg1 {[%emt 0:00:01]} Qb1+ {[%emt 0:00:02]} 39. Kg2 {[%emt 0:00:01]} Qb3 {[%emt 0:00:05][%csl LRa3,LRa4][%mdl 64] Deflection} 40. Nc5 {[%emt 0:00:09]} Qxc3 {[%emt 0:00:01]} 41. Rf4 {[%emt 0:01:03]} Qxa3 {[%emt 0:00:09]} 42. h4 {[%emt 0:00:06]} Qa2+ {[%emt 0:00:04]} 43. Kh3 {[%emt 0:00:02]} Qb1 {[%emt 0:00:04][%cal Rb1h1] Inhibits Nd3.} 44. Kh2 {[%emt 0:00:01] Prevents Qh1+.} Qc2+ {[%emt 0:00:01]} 45. Kh3 {[%emt 0:00:01]} Qd1 {[%emt 0:00:01][%cal Rd1h1]} 46. Kh2 {[%emt 0:00:00] Repels Qh1+} Qe2+ {[%emt 0:00:01]} 47. Kh3 {[%emt 0:00:01]} Kg7 {[%emt 0:00:03] Threatens to win with ...Kh6.} 48. Nd7 {[%emt 0:00:05]} h6 {[%emt 0:00:13]} 49. Nc5 {[%emt 0:00:01]} Qd1 {[%emt 0:00:20][%cal Rd1h1]} 50. Kg2 {[%emt 0:00:04] Against Qh1+} Qc2+ {[%emt 0:00:01]} 51. Rf2 {[%emt 0:00:01]} Qc4 {[%emt 0:00:04] aiming for ...Qd5+.} 52. Rf4 {[%emt 0:00:06]} (52. Rf3 $142) 52... Qd5+ {[%emt 0:00:03]} 53. Kh2 {[%emt 0:00:02]} g5 {[%emt 0:00:05]} 54. hxg5 {[%emt 0:00:00]} hxg5 {[%emt 0:00:01]} 55. Rf2 {[%emt 0:00:01]} Kg6 {[%emt 0:00:03]} (55... Qxd4 56. Ne6+ (56. Rxf5 $2 {is the wrong capture.} Qd2+ 57. Kh3 Qe3 $19) 56... Kg6 57. Nxd4 $18) 56. Rd2 {[%emt 0:00:04]} Kh5 {[%emt 0:00:05]} 57. Nd3 {[%emt 0:00:02]} Qf3 {[%emt 0:00:09] ( -> ...Qe3)} (57... Qxd4 $2 58. Nf4+ $18) 58. Ne5 {[%emt 0:00:09]} Qe3 {[%emt 0:00:01]} 59. g4+ {[%emt 0:00:02]} fxg4 {[%emt 0:00:07] Black mates.} 60. Rg2 {[%emt 0:00:01]} Qxd4 {[%emt 0:00:05]} 61. Nxc6 {[%emt 0:00:04]} Qd6+ {[%emt 0:00:01]} 62. Ne5 {[%emt 0:00:01]} Qxe5+ {[%emt 0:00:01]} 63. Rg3 {[%emt 0:00:01]} Kh4 {[%emt 0:00:02]} 64. Kh1 {[%emt 0:00:03]} Kxg3 {[%emt 0:00:01] Weighted Error Value: White=0.75/Black=0.13 (very precise)} 0-1